OrganisationURI,OrganisationLabel,OrganisationalUnit,TransactionNumber,Invoice Ref.,BeneficiaryName,Expense Type,Purpose,PaymentDate,Amount
http://statistics.data.gov.uk/id/local-authority-district/23UB,Cheltenham Borough Council,Fire Protection,14045716,184796,A & E Fire Equipment Limited,C1107-CAH015,Building Works,42552,740.81
http://statistics.data.gov.uk/id/local-authority-district/23UB,Cheltenham Borough Council,Repairs and Maintenance,14045645,185343,A & E Fire Equipment Limited,R2008-HRA100,R & M of Build - Reactive Repairs,42552,607.48
http://statistics.data.gov.uk/id/local-authority-district/23UB,Cheltenham Borough Council,Supervision and Management,14045714,185398,A & E Fire Equipment Limited,R2008-HRA110,R & M of Build - Reactive Repairs,42573,1447.39
http://statistics.data.gov.uk/id/local-authority-district/23UB,Cheltenham Borough Council,Pittville Park Play Area,14046562,16/27,Active Impact CIC,C4000-CAP125,Acquisition of Equipment,42580,600
http://statistics.data.gov.uk/id/local-authority-district/23UB,Cheltenham Borough Council,Community Welfare Grants,14046073,1591,All About Fun UK.com,R4001-GBD001,Tools & Equipment - Hire,42559,1200
http://statistics.data.gov.uk/id/local-authority-district/23UB,Cheltenham Borough Council,Door Entry,14045946,31158,Allhands Limited T/A Harrold Jones Services,C1107-CAH010,Building Works,42552,720
http://statistics.data.gov.uk/id/local-authority-district/23UB,Cheltenham Borough Council,Housing Benefit Administration,14046062,65798,Alpha Colour Printers Limited,R4300-HBA001,Printing - Services,42559,1183
http://statistics.data.gov.uk/id/local-authority-district/23UB,Cheltenham Borough Council,Referendum,14045857,29134,Alpha Response Print & Mail Limited,R4300-ELE011,Printing - Services,42559,8696.4
http://statistics.data.gov.uk/id/local-authority-district/23UB,Cheltenham Borough Council,Referendum,14045856,29143,Alpha Response Print & Mail Limited,R4300-ELE011,Printing - Services,42559,4798.32
http://statistics.data.gov.uk/id/local-authority-district/23UB,Cheltenham Borough Council,Land & Property presale costs,14046184,2016/17886,Alun Griffiths (Contractors) Limited,C1005-CAP401,Surveyors Fees,42566,97529.35
http://statistics.data.gov.uk/id/local-authority-district/23UB,Cheltenham Borough Council,Tenant Insurance Control,14046106,premium declaration for thcis apr0jun 16,AON Limited - Tenant Insurance,R9925-HRA901,Tenant Insurance Scheme Payments,42566,8381.34
http://statistics.data.gov.uk/id/local-authority-district/23UB,Cheltenham Borough Council,Cheltenham Municipal Offices,14045650,515983,Applied Products (Wales) Ltd,R2004-ADB101,R & M of Build Programmed,42552,5435.17
http://statistics.data.gov.uk/id/local-authority-district/23UB,Cheltenham Borough Council,Development Control - Applications,14045894,11970,Artful Limited,R4317-DEV001,Non Staff Advertising,42559,2289.04
http://statistics.data.gov.uk/id/local-authority-district/23UB,Cheltenham Borough Council,Development Control - Applications,14046556,11993,Artful Limited,R4317-DEV001,Non Staff Advertising,42580,2546.96
http://statistics.data.gov.uk/id/local-authority-district/23UB,Cheltenham Borough Council,Community Welfare Grants,14046034,1002109,"Artisan Print, Design & Marketing",R4300-GBD001,Printing - Services,42559,1026
http://statistics.data.gov.uk/id/local-authority-district/23UB,Cheltenham Borough Council,Environmental Health General,14045646,82078,Atlantic Umbrella Company Limited,R1100-REG001,Agency Staff,42552,574
http://statistics.data.gov.uk/id/local-authority-district/23UB,Cheltenham Borough Council,Environmental Health General,14046152,82743,Atlantic Umbrella Company Limited,R1100-REG001,Agency Staff,42573,560
http://statistics.data.gov.uk/id/local-authority-district/23UB,Cheltenham Borough Council,Environmental Health General,14046300,82902,Atlantic Umbrella Company Limited,R1100-REG001,Agency Staff,42573,616
http://statistics.data.gov.uk/id/local-authority-district/23UB,Cheltenham Borough Council,Environmental Health General,14046554,83013,Atlantic Umbrella Company Limited,R1100-REG001,Agency Staff,42580,532
http://statistics.data.gov.uk/id/local-authority-district/23UB,Cheltenham Borough Council,Joint Core Strategy,14046319,INV306456,Attwaters Jameson Hill Solicitors,R4400-PLP101,Services - Professional Fees,42580,2467.5
http://statistics.data.gov.uk/id/local-authority-district/23UB,Cheltenham Borough Council,Joint Core Strategy,14046319,INV306456,Attwaters Jameson Hill Solicitors,R4400-PLP101,Services - Professional Fees,42580,2636
http://statistics.data.gov.uk/id/local-authority-district/23UB,Cheltenham Borough Council,Joint Core Strategy,14046319,INV306456,Attwaters Jameson Hill Solicitors,R4400-PLP101,Services - Professional Fees,42580,-2636
http://statistics.data.gov.uk/id/local-authority-district/23UB,Cheltenham Borough Council,Recreation Centre Repairs & Maintenance,14045832,58647,AVT Reliability Pump Division,R2008-REC111,R & M of Build - Reactive Repairs,42552,1474
http://statistics.data.gov.uk/id/local-authority-district/23UB,Cheltenham Borough Council,Recreation Centre Repairs & Maintenance,14045831,58676,AVT Reliability Pump Division,R2008-REC111,R & M of Build - Reactive Repairs,42552,3469
http://statistics.data.gov.uk/id/local-authority-district/23UB,Cheltenham Borough Council,Prince of Wales Stadium Repairs & Maintenance,14046219,58756,AVT Reliability Pump Division,R2080-REC112,Mechanical Services,42566,1020
http://statistics.data.gov.uk/id/local-authority-district/23UB,Cheltenham Borough Council,Development costs - Garage Sites 2a,14046162,27304/ME/ab BH:46239,Baily Garner LLP,C1107-CAH052,Building Works,42573,1858.08
http://statistics.data.gov.uk/id/local-authority-district/23UB,Cheltenham Borough Council,Art Gallery & Museum Repairs & Maintenance,14046469,1355,BEMS (Controls) Limited T/A BEMS Energy,R2080-CUL117,Mechanical Services,42580,636
http://statistics.data.gov.uk/id/local-authority-district/23UB,Cheltenham Borough Council,Cheltenham Business Partnership,14046061,160703-062,Blackadder Media Limited,R4411-HLD130,Consultancy Fees,42559,4290
http://statistics.data.gov.uk/id/local-authority-district/23UB,Cheltenham Borough Council,Debtors,14046130,INV492808,Bottomline Technologies Europe Limited (Security Print),R4300-SUP012,Printing - Services,42573,1040
http://statistics.data.gov.uk/id/local-authority-district/23UB,Cheltenham Borough Council,Town Hall Repairs & Maintenance,14046101,24741,Brindley Asphalt Limited,R2004-CUL112,R & M of Build Programmed,42566,19432
http://statistics.data.gov.uk/id/local-authority-district/23UB,Cheltenham Borough Council,"Cemetery, Crematorium and Churchyards",14045249,29450,CDK Castings Limited T/A Arkell & Hurcombe,R4011-CCM001,Goods For Resale,42566,694
http://statistics.data.gov.uk/id/local-authority-district/23UB,Cheltenham Borough Council,"Cemetery, Crematorium and Churchyards",14046017,29508,CDK Castings Limited T/A Arkell & Hurcombe,R4011-CCM001,Goods For Resale,42559,800
http://statistics.data.gov.uk/id/local-authority-district/23UB,Cheltenham Borough Council,"Cemetery, Crematorium and Churchyards",14046018,29529,CDK Castings Limited T/A Arkell & Hurcombe,R4011-CCM001,Goods For Resale,42559,614
http://statistics.data.gov.uk/id/local-authority-district/23UB,Cheltenham Borough Council,Twinning Expenses,14046299,80716,Cheltenham Area Civil Service Sports Association (CACSSA),R4401-DRM011,Services - Fees and Charges,42573,885
http://statistics.data.gov.uk/id/local-authority-district/23UB,Cheltenham Borough Council,Community Development,14045896,2012/90,Cheltenham West End Partnership Limited,R4401-COM001,Services - Fees and Charges,42552,9890
http://statistics.data.gov.uk/id/local-authority-district/23UB,Cheltenham Borough Council,Car Parks - Off Street Operations,14046121,121-007168,Chiefield Limited T/A Brown Advertising And Design,R4300-CPK001,Printing - Services,42580,1185
http://statistics.data.gov.uk/id/local-authority-district/23UB,Cheltenham Borough Council,Cheltenham Business Partnership,14046117,C/RB144974,Civica UK Limited,R4531-HLD130,IT - Purchase of Software,42566,2510
http://statistics.data.gov.uk/id/local-authority-district/23UB,Cheltenham Borough Council,Revenues & Benefits Overheads,14046009,M/RB037401,Civica UK Limited,R4534-LTC101,IT - Maint Agreements,42559,1412.84
http://statistics.data.gov.uk/id/local-authority-district/23UB,Cheltenham Borough Council,Revenues & Benefits Overheads,14045805,M/RB037566,Civica UK Limited,R4534-LTC101,IT - Maint Agreements,42573,2700
http://statistics.data.gov.uk/id/local-authority-district/23UB,Cheltenham Borough Council,War Memorials,14045885,11876,Cliveden Conservation Workshop Ltd,R2078-CUL002,R&M of Build - external structures,42552,7131.51
http://statistics.data.gov.uk/id/local-authority-district/23UB,Cheltenham Borough Council,War Memorials,14046274,11894,Cliveden Conservation Workshop Ltd,R2078-CUL002,R&M of Build - external structures,42573,8351.92
http://statistics.data.gov.uk/id/local-authority-district/23UB,Cheltenham Borough Council,"Cemetery, Crematorium and Churchyards",14046086,561780,Comensura Limited,R1100-CCM001,Agency Staff,42580,7189.79
http://statistics.data.gov.uk/id/local-authority-district/23UB,Cheltenham Borough Council,"Cemetery, Crematorium and Churchyards",14046399,562353,Comensura Limited,R1100-CCM001,Agency Staff,42573,3312.4
http://statistics.data.gov.uk/id/local-authority-district/23UB,Cheltenham Borough Council,"Cemetery, Crematorium and Churchyards",14046425,562644,Comensura Limited,R1100-CCM001,Agency Staff,42573,1295.52
http://statistics.data.gov.uk/id/local-authority-district/23UB,Cheltenham Borough Council,Custodians,14046424,SINV1258603,Commercial Limited (Office Stationery only),R4308-ADB102,Stationery,42573,698
http://statistics.data.gov.uk/id/local-authority-district/23UB,Cheltenham Borough Council,"Cheltenham Environmental Fund- Townscape					",14045687,CRL16004,Connect Regen Limited,R6280-ENF101,Grants,42552,3400
http://statistics.data.gov.uk/id/local-authority-district/23UB,Cheltenham Borough Council,Flood Risk Management,14046027,c27216,Cotswold Drain Service Limited,R5001-FRM101,TPP - Major External Contractors,42559,640
http://statistics.data.gov.uk/id/local-authority-district/23UB,Cheltenham Borough Council,Flood Risk Management,14046027,c27216,Cotswold Drain Service Limited,R5001-FRM101,TPP - Major External Contractors,42559,640
http://statistics.data.gov.uk/id/local-authority-district/23UB,Cheltenham Borough Council,Flood Risk Management,14046027,c27216,Cotswold Drain Service Limited,R5001-FRM101,TPP - Major External Contractors,42559,-640
http://statistics.data.gov.uk/id/local-authority-district/23UB,Cheltenham Borough Council,Flood Risk Management,14046186,C27358,Cotswold Drain Service Limited,R5001-FRM101,TPP - Major External Contractors,42566,1320
http://statistics.data.gov.uk/id/local-authority-district/23UB,Cheltenham Borough Council,Flood Risk Management,14046572,C27405,Cotswold Drain Service Limited,R5001-FRM101,TPP - Major External Contractors,42580,2440
http://statistics.data.gov.uk/id/local-authority-district/23UB,Cheltenham Borough Council,Community Welfare Grants,14046029,CML 258062016,Cotswold Markets Limited,R4617-GBD001,Community Sponsorship,42559,1320
http://statistics.data.gov.uk/id/local-authority-district/23UB,Cheltenham Borough Council,Economic Development,14046005,20161324,Counting Solutions Limited t/a PFM,R4400-ECD001,Services - Professional Fees,42566,1876
http://statistics.data.gov.uk/id/local-authority-district/23UB,Cheltenham Borough Council,Parks & Gardens Operations,14046108,PITTVILLE PARK,County Drain Services,R2700-OPS001,Contract Cleaning,42573,850
http://statistics.data.gov.uk/id/local-authority-district/23UB,Cheltenham Borough Council,Parks & Gardens Operations,14046108,PITTVILLE PARK,County Drain Services,R2700-OPS001,Contract Cleaning,42573,750
http://statistics.data.gov.uk/id/local-authority-district/23UB,Cheltenham Borough Council,Parks & Gardens Operations,14046108,PITTVILLE PARK,County Drain Services,R2706-OPS001,Cleaning - reactive,42573,-1600
http://statistics.data.gov.uk/id/local-authority-district/23UB,Cheltenham Borough Council,Parks & Gardens Operations,14046108,PITTVILLE PARK,County Drain Services,R2706-OPS001,Cleaning - reactive,42573,1600
http://statistics.data.gov.uk/id/local-authority-district/23UB,Cheltenham Borough Council,Allotments,14045869,8071,D W Clark Drainage Limited,C1107-CAP501,Building Works,42573,-4950
http://statistics.data.gov.uk/id/local-authority-district/23UB,Cheltenham Borough Council,Allotments,14045869,8071,D W Clark Drainage Limited,C1107-CAP501,Building Works,42573,4950
http://statistics.data.gov.uk/id/local-authority-district/23UB,Cheltenham Borough Council,Allotments,14045869,8071,D W Clark Drainage Limited,C1107-CAP501,Building Works,42573,5940
http://statistics.data.gov.uk/id/local-authority-district/23UB,Cheltenham Borough Council,ICT,14046557,2160721,Data Track Technology plc,R4534-SUP005,IT - Maint Agreements,42580,2819.24
http://statistics.data.gov.uk/id/local-authority-district/23UB,Cheltenham Borough Council,Development Control - Applications,14045895,7100027092,Dell Corporation Limited,R4530-DEV001,IT - Purchase of Hardware,42552,1111.86
http://statistics.data.gov.uk/id/local-authority-district/23UB,Cheltenham Borough Council,Accountancy,14046019,7402297629,Dell Corporation Limited,R4530-SUP009,IT - Purchase of Hardware,42559,540
http://statistics.data.gov.uk/id/local-authority-district/23UB,Cheltenham Borough Council,Licensing,14045664,A17028,Disclosure & Barring Service,R1601-REG002,CRB Police Checks,42552,528
http://statistics.data.gov.uk/id/local-authority-district/23UB,Cheltenham Borough Council,Licensing,14046134,A20105,Disclosure & Barring Service,R1601-REG002,CRB Police Checks,42580,528
http://statistics.data.gov.uk/id/local-authority-district/23UB,Cheltenham Borough Council,Structural / Damp Works,14016865,263243,Domestic & General Insultation Limited,C1107-CAH016,Building Works,42566,950
http://statistics.data.gov.uk/id/local-authority-district/23UB,Cheltenham Borough Council,"Cemetery, Crematorium and Churchyards",14046416,150716,Dr Young & Partners,R4401-CCM001,Services - Fees and Charges,42573,12012
http://statistics.data.gov.uk/id/local-authority-district/23UB,Cheltenham Borough Council,Car Parks - Off Street R&M,14046276,447347,DTZ DTL Limited,R2001-CPK101,R & M of Fix & Fit - General,42573,23582
http://statistics.data.gov.uk/id/local-authority-district/23UB,Cheltenham Borough Council,Royal Well Bus Node,14046097,163225,E.G. Carter & Co. Limited,R2004-PUT101,R & M of Build Programmed,42566,57626.24
http://statistics.data.gov.uk/id/local-authority-district/23UB,Cheltenham Borough Council,Pittville Park Play Area,14045778,90121526 R3,Eibe Play Ltd,C4000-CAP125,Acquisition of Equipment,42552,-1902.78
http://statistics.data.gov.uk/id/local-authority-district/23UB,Cheltenham Borough Council,Pittville Park Play Area,14045778,90121526 R3,Eibe Play Ltd,C4000-CAP125,Acquisition of Equipment,42552,1902.78
http://statistics.data.gov.uk/id/local-authority-district/23UB,Cheltenham Borough Council,Pittville Park Play Area,14045778,90121526 R3,Eibe Play Ltd,C4000-CAP125,Acquisition of Equipment,42552,1585.65
http://statistics.data.gov.uk/id/local-authority-district/23UB,Cheltenham Borough Council,Pittville Park Play Area,14045752,90121552 AV1,Eibe Play Ltd,C4000-CAP125,Acquisition of Equipment,42552,44878.74
http://statistics.data.gov.uk/id/local-authority-district/23UB,Cheltenham Borough Council,Pittville Park Play Area,14045752,90121552 AV1,Eibe Play Ltd,C4000-CAP125,Acquisition of Equipment,42552,44878.74
http://statistics.data.gov.uk/id/local-authority-district/23UB,Cheltenham Borough Council,Pittville Park Play Area,14045752,90121552 AV1,Eibe Play Ltd,C4000-CAP125,Acquisition of Equipment,42552,-44878.74
http://statistics.data.gov.uk/id/local-authority-district/23UB,Cheltenham Borough Council,Pittville Park Play Area,14046026,Valuation4,Eibe Play Ltd,C4000-CAP125,Acquisition of Equipment,42559,28764.13
http://statistics.data.gov.uk/id/local-authority-district/23UB,Cheltenham Borough Council,Pittville Park Play Area,14046026,Valuation4,Eibe Play Ltd,C4000-CAP125,Acquisition of Equipment,42559,-28764.13
http://statistics.data.gov.uk/id/local-authority-district/23UB,Cheltenham Borough Council,Pittville Park Play Area,14046026,Valuation4,Eibe Play Ltd,C4000-CAP125,Acquisition of Equipment,42559,28764.13
http://statistics.data.gov.uk/id/local-authority-district/23UB,Cheltenham Borough Council,Cheltenham Business Partnership,14045522,ERS1600855,Electoral Reform Services Limited,R4411-HLD130,Consultancy Fees,42566,510.08
http://statistics.data.gov.uk/id/local-authority-district/23UB,Cheltenham Borough Council,Cheltenham Business Partnership,14045522,ERS1600855,Electoral Reform Services Limited,R4411-HLD130,Consultancy Fees,42566,3839.95
http://statistics.data.gov.uk/id/local-authority-district/23UB,Cheltenham Borough Council,Recreation Centre Repairs & Maintenance,14045644,301267/5/2016,Ener-G Combined Power (South) Limited,R2100-REC111,Electricity,42552,2984.88
http://statistics.data.gov.uk/id/local-authority-district/23UB,Cheltenham Borough Council,Recreation Centre Repairs & Maintenance,14046308,301267/6/2016,Ener-G Combined Power (South) Limited,R2100-REC111,Electricity,42573,2643.71
http://statistics.data.gov.uk/id/local-authority-district/23UB,Cheltenham Borough Council,Neighbourhood works,14046014,WM007152,English Landscapes Limited t/a The Landscape Group,C1107-CAH005,Building Works,42559,1558.04
http://statistics.data.gov.uk/id/local-authority-district/23UB,Cheltenham Borough Council,Development costs - Swindon Road,14046007,G/011538,Gage-Tupper & Associates Limited,C1107-CAH050,Building Works,42566,786
http://statistics.data.gov.uk/id/local-authority-district/23UB,Cheltenham Borough Council,Development costs - Swindon Road,14046008,G/011566,Gage-Tupper & Associates Limited,C1107-CAH050,Building Works,42566,917
http://statistics.data.gov.uk/id/local-authority-district/23UB,Cheltenham Borough Council,Trees,14046182,244,Gaskins Treework Specialists,R2070-PLP006,Tree Work,42566,2341
http://statistics.data.gov.uk/id/local-authority-district/23UB,Cheltenham Borough Council,Community Welfare Grants,14046122,1536,GDR Solutions (UK) Limited,R4617-GBD001,Community Sponsorship,42566,650
http://statistics.data.gov.uk/id/local-authority-district/23UB,Cheltenham Borough Council,Allotments,14045937,1118,Gloucester Asbestos Liimited,R2008-OPS004,R & M of Build - Reactive Repairs,42573,2000
http://statistics.data.gov.uk/id/local-authority-district/23UB,Cheltenham Borough Council,Sports & Open Spaces Operations,14045937,1118,Gloucester Asbestos Liimited,R2076-OPS002,Grounds Maintenance - Non Contract,42573,1500
http://statistics.data.gov.uk/id/local-authority-district/23UB,Cheltenham Borough Council,Referendum,14046549,143196,Gloucester Event Hire,R4401-ELE011,Services - Fees and Charges,42580,648
http://statistics.data.gov.uk/id/local-authority-district/23UB,Cheltenham Borough Council,Sports Development,14044413,1800395246,Gloucestershire County Council,R9102-REC001,Contributions - Other Organisations,42552,60889.7
http://statistics.data.gov.uk/id/local-authority-district/23UB,Cheltenham Borough Council,Emergency Planning,14046309,1800407155,Gloucestershire County Council,R4400-EMP001,Services - Professional Fees,42573,2000
http://statistics.data.gov.uk/id/local-authority-district/23UB,Cheltenham Borough Council,Land Charges,14046311,1800407213,Gloucestershire County Council,R4401-BUC004,Services - Fees and Charges,42580,8260.89
http://statistics.data.gov.uk/id/local-authority-district/23UB,Cheltenham Borough Council,2020 Vision,14046404,800006708,GLOUCESTERSHIRE COUNTY COUNCIL (LGPS ONLY),R1802-COR102,Discretionary Pension Payments,42580,117088.6
http://statistics.data.gov.uk/id/local-authority-district/23UB,Cheltenham Borough Council,"Cemetery, Crematorium and Churchyards",14045525,10014114,Goldingham Contracts Limited,R2075-CCM001,Grounds Maintenance - Contract,42566,572.1
http://statistics.data.gov.uk/id/local-authority-district/23UB,Cheltenham Borough Council,Corporate Management,14045891,8555779,Grant Thornton UK LLP,R4430-COR001,Audit Fees,42552,12351.5
http://statistics.data.gov.uk/id/local-authority-district/23UB,Cheltenham Borough Council,Parks & Gardens Repairs & Maintenance,14046295,3374,Greenway Partnership Limited T/A GPL Building Services,R2008-OPS121,R & M of Build - Reactive Repairs,42573,4125
http://statistics.data.gov.uk/id/local-authority-district/23UB,Cheltenham Borough Council,Recreation Centre Repairs & Maintenance,14046109,3375,Greenway Partnership Limited T/A GPL Building Services,R2008-REC111,R & M of Build - Reactive Repairs,42566,625
http://statistics.data.gov.uk/id/local-authority-district/23UB,Cheltenham Borough Council,Crematorium Scheme: New Build,14046042,3376,Greenway Partnership Limited T/A GPL Building Services,C1005-CAP601,Surveyors Fees,42566,3594
http://statistics.data.gov.uk/id/local-authority-district/23UB,Cheltenham Borough Council,Referendum,14046103,3392,Greenway Partnership Limited T/A GPL Building Services,R4401-ELE011,Services - Fees and Charges,42566,9018
http://statistics.data.gov.uk/id/local-authority-district/23UB,Cheltenham Borough Council,Recreation Centre Repairs & Maintenance,14046245,3394,Greenway Partnership Limited T/A GPL Building Services,R2004-REC111,R & M of Build Programmed,42566,2875
http://statistics.data.gov.uk/id/local-authority-district/23UB,Cheltenham Borough Council,Parks & Gardens Repairs & Maintenance,14046296,3395,Greenway Partnership Limited T/A GPL Building Services,R2004-OPS121,R & M of Build Programmed,42573,1790
http://statistics.data.gov.uk/id/local-authority-district/23UB,Cheltenham Borough Council,Parks & Gardens Operations,14046143,3414,Greenway Partnership Limited T/A GPL Building Services,R2007-OPS001,R & M of Plant Contracts,42566,3458.27
http://statistics.data.gov.uk/id/local-authority-district/23UB,Cheltenham Borough Council,Parks & Gardens Operations,14046143,3414,Greenway Partnership Limited T/A GPL Building Services,R2007-OPS001,R & M of Plant Contracts,42566,3458.27
http://statistics.data.gov.uk/id/local-authority-district/23UB,Cheltenham Borough Council,Parks & Gardens Operations,14046143,3414,Greenway Partnership Limited T/A GPL Building Services,R2007-OPS001,R & M of Plant Contracts,42566,-3458.27
http://statistics.data.gov.uk/id/local-authority-district/23UB,Cheltenham Borough Council,Sports & Open Spaces Operations,14045870,44575,HAGS-SMP Limited,R4000-OPS002,Equipment Purchase,42552,5073.05
http://statistics.data.gov.uk/id/local-authority-district/23UB,Cheltenham Borough Council,Referendum,14046437,9891,Halarose Limited,R1652-ELE011,Training Fees (External),42580,2400
http://statistics.data.gov.uk/id/local-authority-district/23UB,Cheltenham Borough Council,Abandoned Vehicles,14046321,659,Harry Buckland,R4401-STC011,Services - Fees and Charges,42573,730
http://statistics.data.gov.uk/id/local-authority-district/23UB,Cheltenham Borough Council,Joint Core Strategy,14045260,HDH 105,HDH Planning & Development Limited,R4400-PLP101,Services - Professional Fees,42552,4441
http://statistics.data.gov.uk/id/local-authority-district/23UB,Cheltenham Borough Council,Art Gallery & Museum Repairs & Maintenance,14045658,10642,Hellion Environmental Limited,R2008-CUL117,R & M of Build - Reactive Repairs,42552,885
http://statistics.data.gov.uk/id/local-authority-district/23UB,Cheltenham Borough Council,Art Gallery & Museum Repairs & Maintenance,14046506,16050,Hellion Environmental Limited,R2080-CUL117,Mechanical Services,42580,520.84
http://statistics.data.gov.uk/id/local-authority-district/23UB,Cheltenham Borough Council,Recreation Centre Repairs & Maintenance,14046520,16064,Hellion Environmental Limited,R2080-REC111,Mechanical Services,42580,545.63
http://statistics.data.gov.uk/id/local-authority-district/23UB,Cheltenham Borough Council,Income and Expenditure on Investment Properties and Changes in Their Fair Value,14046537,16083,Hellion Environmental Limited,R2004-FIE040,R & M of Build Programmed,42580,625
http://statistics.data.gov.uk/id/local-authority-district/23UB,Cheltenham Borough Council,Cheltenham Municipal Offices,14046497,16089,Hellion Environmental Limited,R2008-ADB101,R & M of Build - Reactive Repairs,42580,727.16
http://statistics.data.gov.uk/id/local-authority-district/23UB,Cheltenham Borough Council,Art Gallery & Museum Repairs & Maintenance,14046500,16093,Hellion Environmental Limited,R2008-CUL117,R & M of Build - Reactive Repairs,42580,513.12
http://statistics.data.gov.uk/id/local-authority-district/23UB,Cheltenham Borough Council,Art Gallery & Museum Repairs & Maintenance,14046500,16093,Hellion Environmental Limited,R2008-CUL117,R & M of Build - Reactive Repairs,42580,1527.5
http://statistics.data.gov.uk/id/local-authority-district/23UB,Cheltenham Borough Council,Recreation Centre Repairs & Maintenance,14045974,CIS CORRECTION A,Hellion Environmental Limited,R2080-REC111,Mechanical Services,42552,3069.87
http://statistics.data.gov.uk/id/local-authority-district/23UB,Cheltenham Borough Council,Supervision and Management,14046495,SIAL/00022042,Herefordshire Housing Limited,R4445-HRA110,Communal Alarms - Monitoring & Maintenance,42580,543.4
http://statistics.data.gov.uk/id/local-authority-district/23UB,Cheltenham Borough Council,Supervision and Management,14046483,SIAL/00022073,Herefordshire Housing Limited,R4445-HRA110,Communal Alarms - Monitoring & Maintenance,42580,514.8
http://statistics.data.gov.uk/id/local-authority-district/23UB,Cheltenham Borough Council,General Fund Balance Sheet,14046153,CISDEDUCT0606-050716,HMRC (CBC - CIS),B6220-BAL100,CIS Deductions Control (reallocated),42566,5023.69
http://statistics.data.gov.uk/id/local-authority-district/23UB,Cheltenham Borough Council,Car Park Income Collection,14045507,22234,Hoge 100 Business Systems Limited,R4534-CPK002,IT - Maint Agreements,42552,1170.17
http://statistics.data.gov.uk/id/local-authority-district/23UB,Cheltenham Borough Council,Community Welfare Grants,14046474,KPW,Holst Birthplace Museum,R6280-GBD001,Grants,42580,3750
http://statistics.data.gov.uk/id/local-authority-district/23UB,Cheltenham Borough Council,Repairs and Maintenance,14046100,150312AA3,Ian Williams Limited,R2060-HRA100,R & M of Build Cyclical Painting Communal Areas,42566,-73278.26
http://statistics.data.gov.uk/id/local-authority-district/23UB,Cheltenham Borough Council,Repairs and Maintenance,14046100,150312AA3,Ian Williams Limited,R2060-HRA100,R & M of Build Cyclical Painting Communal Areas,42566,73278.26
http://statistics.data.gov.uk/id/local-authority-district/23UB,Cheltenham Borough Council,Repairs and Maintenance,14046100,150312AA3,Ian Williams Limited,R2060-HRA100,R & M of Build Cyclical Painting Communal Areas,42566,73278.26
http://statistics.data.gov.uk/id/local-authority-district/23UB,Cheltenham Borough Council,Car Parks - Off Street Operations,14045512,32052,Imperial Civil Enforcement Solutions Limited,R4402-CPK001,Services - General Licences,42552,2400
http://statistics.data.gov.uk/id/local-authority-district/23UB,Cheltenham Borough Council,Development costs - Swindon Road,14045972,004 IN022405,J Harper & Sons (Leominster) Limited,C1107-CAH050,Building Works,42552,127640
http://statistics.data.gov.uk/id/local-authority-district/23UB,Cheltenham Borough Council,Development costs - Swindon Road,14045972,004 IN022405,J Harper & Sons (Leominster) Limited,C1107-CAH050,Building Works,42552,125464.9
http://statistics.data.gov.uk/id/local-authority-district/23UB,Cheltenham Borough Council,Development costs - Swindon Road,14045972,004 IN022405,J Harper & Sons (Leominster) Limited,C1107-CAH050,Building Works,42552,-125464.9
http://statistics.data.gov.uk/id/local-authority-district/23UB,Cheltenham Borough Council,Development costs - Garage Sites 2a,14045973,008 IN022409,J Harper & Sons (Leominster) Limited,C1107-CAH052,Building Works,42552,142865.84
http://statistics.data.gov.uk/id/local-authority-district/23UB,Cheltenham Borough Council,Development costs - Garage Sites 2a,14045973,008 IN022409,J Harper & Sons (Leominster) Limited,C1107-CAH052,Building Works,42552,-148646.88
http://statistics.data.gov.uk/id/local-authority-district/23UB,Cheltenham Borough Council,Development costs - Garage Sites 2a,14045973,008 IN022409,J Harper & Sons (Leominster) Limited,C1107-CAH052,Building Works,42552,148646.88
http://statistics.data.gov.uk/id/local-authority-district/23UB,Cheltenham Borough Council,Sports & Open Spaces Operations,14046183,16/022,J P North (Farmer),R2071-OPS002,Open Spaces and Grassed Areas,42573,2100
http://statistics.data.gov.uk/id/local-authority-district/23UB,Cheltenham Borough Council,Joint Core Strategy,14046066,10716,Jim Claydon - Planner,R4400-PLP101,Services - Professional Fees,42559,677.6
http://statistics.data.gov.uk/id/local-authority-district/23UB,Cheltenham Borough Council,Repairs and Maintenance,14046157,RND300216/comb-16,John Gillman & Sons (Electrical) Limited (Gillmans Appliance),R4002-HRA100,Tools & Equipment - Lease/Rental,42566,1950.78
http://statistics.data.gov.uk/id/local-authority-district/23UB,Cheltenham Borough Council,Repairs and Maintenance,14046156,RND300316/comb-16,John Gillman & Sons (Electrical) Limited (Gillmans Appliance),R4002-HRA100,Tools & Equipment - Lease/Rental,42566,1950.78
http://statistics.data.gov.uk/id/local-authority-district/23UB,Cheltenham Borough Council,Repairs and Maintenance,14046155,RND300416/comb-16,John Gillman & Sons (Electrical) Limited (Gillmans Appliance),R4002-HRA100,Tools & Equipment - Lease/Rental,42566,1950.78
http://statistics.data.gov.uk/id/local-authority-district/23UB,Cheltenham Borough Council,Repairs and Maintenance,14046154,RND300516/comb-16,John Gillman & Sons (Electrical) Limited (Gillmans Appliance),R4002-HRA100,Tools & Equipment - Lease/Rental,42566,1950.78
http://statistics.data.gov.uk/id/local-authority-district/23UB,Cheltenham Borough Council,Repairs and Maintenance,14046398,RND300616/comb-16,John Gillman & Sons (Electrical) Limited (Gillmans Appliance),R4002-HRA100,Tools & Equipment - Lease/Rental,42573,1950.78
http://statistics.data.gov.uk/id/local-authority-district/23UB,Cheltenham Borough Council,Cheltenham Depot,14045962,INV-0475,JS Security Limited,R2705-ADB103,Security Systems,42566,630
http://statistics.data.gov.uk/id/local-authority-district/23UB,Cheltenham Borough Council,Car Parks - Off Street Operations,14045961,INV-0477,JS Security Limited,R2705-CPK001,Security Systems,42573,840
http://statistics.data.gov.uk/id/local-authority-district/23UB,Cheltenham Borough Council,Repairs and Maintenance,14045536,1182261,Liberty Gas Group,R2016-HRA100,R & M of Build Void Repairs,42552,908.21
http://statistics.data.gov.uk/id/local-authority-district/23UB,Cheltenham Borough Council,Repairs and Maintenance,14045536,1182261,Liberty Gas Group,R2040-HRA100,R & M of Build Central Heating,42552,38067.44
http://statistics.data.gov.uk/id/local-authority-district/23UB,Cheltenham Borough Council,New Heating Installations,14046126,1182808,Liberty Gas Group,C1107-CAH009,Building Works,42566,3600.91
http://statistics.data.gov.uk/id/local-authority-district/23UB,Cheltenham Borough Council,Repairs and Maintenance,14046119,1182809,Liberty Gas Group,R2040-HRA100,R & M of Build Central Heating,42566,38302.42
http://statistics.data.gov.uk/id/local-authority-district/23UB,Cheltenham Borough Council,Repairs and Maintenance,14046119,1182809,Liberty Gas Group,R2016-HRA100,R & M of Build Void Repairs,42566,1625.27
http://statistics.data.gov.uk/id/local-authority-district/23UB,Cheltenham Borough Council,Pest Control,14045893,INV 306,Life in the Rainforest,R4001-REG018,Tools & Equipment - Hire,42552,1700
http://statistics.data.gov.uk/id/local-authority-district/23UB,Cheltenham Borough Council,ICT,14046293,16000646,LinchPin Networks Limited,R4548-SUP005,IT - Cabling and Network,42573,2600
http://statistics.data.gov.uk/id/local-authority-district/23UB,Cheltenham Borough Council,ICT,14046292,16000647,LinchPin Networks Limited,R4548-SUP005,IT - Cabling and Network,42573,1599.5
http://statistics.data.gov.uk/id/local-authority-district/23UB,Cheltenham Borough Council,Land Charges,14045395,40148470,Local Government Association (LGA),R4400-BUC004,Services - Professional Fees,42552,625.46
http://statistics.data.gov.uk/id/local-authority-district/23UB,Cheltenham Borough Council,Sports & Open Spaces Operations,14045772,2682,Lushglen Exterior Furniture Renovation Services,R2008-OPS002,R & M of Build - Reactive Repairs,42552,722.5
http://statistics.data.gov.uk/id/local-authority-district/23UB,Cheltenham Borough Council,Recreation Centre Repairs & Maintenance,14045779,10800,Massie Electrics Limited,R2004-REC111,R & M of Build Programmed,42552,1034
http://statistics.data.gov.uk/id/local-authority-district/23UB,Cheltenham Borough Council,Recreation Centre Repairs & Maintenance,14046249,10837,Massie Electrics Limited,R2062-REC111,R & M of Build Cyclical Electrical Remedials,42573,903.75
http://statistics.data.gov.uk/id/local-authority-district/23UB,Cheltenham Borough Council,Window & Door Renewals,14045351,FT_Inv00008639,Masterdor Limited,C1107-CAH017,Building Works,42552,2615.57
http://statistics.data.gov.uk/id/local-authority-district/23UB,Cheltenham Borough Council,Window & Door Renewals,14045875,FT_Inv00009357,Masterdor Limited,C1107-CAH017,Building Works,42552,26491.46
http://statistics.data.gov.uk/id/local-authority-district/23UB,Cheltenham Borough Council,Window & Door Renewals,14046148,FT_Inv00009909,Masterdor Limited,C1107-CAH017,Building Works,42566,20421.64
http://statistics.data.gov.uk/id/local-authority-district/23UB,Cheltenham Borough Council,Trees,14045802,1615,Meadowside Tree Care,R2070-PLP006,Tree Work,42552,1020
http://statistics.data.gov.uk/id/local-authority-district/23UB,Cheltenham Borough Council,Adaptations for the Disabled (CBC),14046397,REDACTED,Mears Home Improvements (Client Account),C1107-CAH028,Building Works,42573,3310.91
http://statistics.data.gov.uk/id/local-authority-district/23UB,Cheltenham Borough Council,Neighbourhood works,14045252,1146,MHP Design Limited,C1107-CAH005,Building Works,42552,1800
http://statistics.data.gov.uk/id/local-authority-district/23UB,Cheltenham Borough Council,Neighbourhood works,14046070,1165,MHP Design Limited,C1107-CAH005,Building Works,42559,1095
http://statistics.data.gov.uk/id/local-authority-district/23UB,Cheltenham Borough Council,Treasury Management,14045983,5073650,Mishcon de Reya,R4426-COR006,Legal Expenses,42559,1000
http://statistics.data.gov.uk/id/local-authority-district/23UB,Cheltenham Borough Council,Repairs and Maintenance,14046147,26611,Morgan Lambert Limited,R2040-HRA100,R & M of Build Central Heating,42566,704
http://statistics.data.gov.uk/id/local-authority-district/23UB,Cheltenham Borough Council,"Cemetery, Crematorium and Churchyards",14046065,10716,Mr J Sureda,R4401-CCM001,Services - Fees and Charges,42559,780.6
http://statistics.data.gov.uk/id/local-authority-district/23UB,Cheltenham Borough Council,Sports & Open Spaces Operations,14045820,16/03,Mumkin Operational Services,R4003-OPS002,Tools & Equipment - R & M,42552,976.7
http://statistics.data.gov.uk/id/local-authority-district/23UB,Cheltenham Borough Council,Joint Core Strategy,14045811,98819,Nathaniel Lichfield & Partners,R4400-PLP101,Services - Professional Fees,42552,10587.6
http://statistics.data.gov.uk/id/local-authority-district/23UB,Cheltenham Borough Council,Window & Door Renewals,14046417,16060424,Nationwide Windows Limited,C1107-CAH017,Building Works,42580,86001.52
http://statistics.data.gov.uk/id/local-authority-district/23UB,Cheltenham Borough Council,Supervision and Management,14046069,338,Nature First Limited,R2070-HRA110,Tree Work,42566,900
http://statistics.data.gov.uk/id/local-authority-district/23UB,Cheltenham Borough Council,Trees,14046081,351,Nature First Limited,R2070-PLP006,Tree Work,42566,1000
http://statistics.data.gov.uk/id/local-authority-district/23UB,Cheltenham Borough Council,Play areas (Section 106),14046116,0003/10004013,Nicks & Company (Timber) Limited,C4000-CAP101,Acquisition of Equipment,42573,4974
http://statistics.data.gov.uk/id/local-authority-district/23UB,Cheltenham Borough Council,Sports & Open Spaces Repairs & Maintenance,14045984,95,Oakley Neighbourhood Trading Limited,R2205-OPS122,Service Charges,42559,1333.54
http://statistics.data.gov.uk/id/local-authority-district/23UB,Cheltenham Borough Council,"Cemetery, Crematorium and Churchyards",14045865,41817,Oconnor Construction Company Ltd,R2007-CCM001,R & M of Plant Contracts,42552,886
http://statistics.data.gov.uk/id/local-authority-district/23UB,Cheltenham Borough Council,High Street Public Realm Improvements,14045866,41825,Oconnor Construction Company Ltd,C1100-CAP205,Construction,42552,1968
http://statistics.data.gov.uk/id/local-authority-district/23UB,Cheltenham Borough Council,High Street Public Realm Improvements,14045866,41825,Oconnor Construction Company Ltd,C1100-CAP205,Construction,42552,-1968
http://statistics.data.gov.uk/id/local-authority-district/23UB,Cheltenham Borough Council,High Street Public Realm Improvements,14045866,41825,Oconnor Construction Company Ltd,C1100-CAP205,Construction,42552,1968
http://statistics.data.gov.uk/id/local-authority-district/23UB,Cheltenham Borough Council,"Cemetery, Crematorium and Churchyards",14046406,B8816,Odlings Limited T/A The Columbaria Company,R4011-CCM001,Goods For Resale,42573,810
http://statistics.data.gov.uk/id/local-authority-district/23UB,Cheltenham Borough Council,Repairs and Maintenance,14045840,O0398850,Orbis Protect Limited,R2012-HRA100,R & M of Build Standby and Call Out,42552,1127.03
http://statistics.data.gov.uk/id/local-authority-district/23UB,Cheltenham Borough Council,Cheltenham Municipal Offices,14045667,1213617,Otis Limited,R2010-ADB101,R & M of Plant Lifts,42559,3480.62
http://statistics.data.gov.uk/id/local-authority-district/23UB,Cheltenham Borough Council,Joint Core Strategy,14046129,100411835,Ove Arup & Partners Limited,R4400-PLP101,Services - Professional Fees,42580,2520
http://statistics.data.gov.uk/id/local-authority-district/23UB,Cheltenham Borough Council,Car Parks - Off Street Operations,14045527,UK88314,Parkeon Limited,R4003-CPK001,Tools & Equipment - R & M,42552,2432.75
http://statistics.data.gov.uk/id/local-authority-district/23UB,Cheltenham Borough Council,Car Parks - Off Street Operations,14045858,UK88587,Parkeon Limited,R4401-CPK001,Services - Fees and Charges,42559,2266.6
http://statistics.data.gov.uk/id/local-authority-district/23UB,Cheltenham Borough Council,Car Parks - Off Street Operations,14046453,UK89294,Parkeon Limited,R4401-CPK001,Services - Fees and Charges,42580,2296
http://statistics.data.gov.uk/id/local-authority-district/23UB,Cheltenham Borough Council,Cemetery & Crematorium Repairs & Maintenance,14045787,63666274,Personnel Hygiene Services (PHS Group),R2083-CCM111,R&M of Build - Routine,42566,827.16
http://statistics.data.gov.uk/id/local-authority-district/23UB,Cheltenham Borough Council,Public Conveniences R&M,14045784,63666275,Personnel Hygiene Services (PHS Group),R2083-REG119,R&M of Build - Routine,42552,660
http://statistics.data.gov.uk/id/local-authority-district/23UB,Cheltenham Borough Council,Cheltenham Municipal Offices,14045788,63666277,Personnel Hygiene Services (PHS Group),R2083-ADB101,R&M of Build - Routine,42566,4287.04
http://statistics.data.gov.uk/id/local-authority-district/23UB,Cheltenham Borough Council,Public Conveniences R&M,14045786,63666279,Personnel Hygiene Services (PHS Group),R2083-REG119,R&M of Build - Routine,42552,1043.36
http://statistics.data.gov.uk/id/local-authority-district/23UB,Cheltenham Borough Council,Public Conveniences R&M,14045781,63666280,Personnel Hygiene Services (PHS Group),R2083-REG119,R&M of Build - Routine,42552,1447.95
http://statistics.data.gov.uk/id/local-authority-district/23UB,Cheltenham Borough Council,Public Conveniences R&M,14045783,63666281,Personnel Hygiene Services (PHS Group),R2083-REG119,R&M of Build - Routine,42552,1013.7
http://statistics.data.gov.uk/id/local-authority-district/23UB,Cheltenham Borough Council,Public Conveniences R&M,14045782,63666291,Personnel Hygiene Services (PHS Group),R2008-REG119,R & M of Build - Reactive Repairs,42552,1117.43
http://statistics.data.gov.uk/id/local-authority-district/23UB,Cheltenham Borough Council,Crematorium Scheme: New Build,14046318,40339,Pick Everard,C1005-CAP601,Surveyors Fees,42573,17692.03
http://statistics.data.gov.uk/id/local-authority-district/23UB,Cheltenham Borough Council,Postal Services,14046010,61310035,Pitney Bowes - Postage by Phone,R4521-SUP024,Postages - franking machine,42559,5000
http://statistics.data.gov.uk/id/local-authority-district/23UB,Cheltenham Borough Council,Cemetery & Crematorium Repairs & Maintenance,14046313,3365,PJ Combustion Solutions Limited,R2083-CCM111,R&M of Build - Routine,42573,2810
http://statistics.data.gov.uk/id/local-authority-district/23UB,Cheltenham Borough Council,Cemetery & Crematorium Repairs & Maintenance,14045649,3373,PJ Combustion Solutions Limited,R4003-CCM111,Tools & Equipment - R & M,42552,5735
http://statistics.data.gov.uk/id/local-authority-district/23UB,Cheltenham Borough Council,Cemetery & Crematorium Repairs & Maintenance,14046312,3379,PJ Combustion Solutions Limited,R4003-CCM111,Tools & Equipment - R & M,42573,623
http://statistics.data.gov.uk/id/local-authority-district/23UB,Cheltenham Borough Council,Night Time Levy,14044723,dbts00005060,Police and Crime Commissioner for Gloucestershire,R4402-REG024,Services - General Licences,42580,2838
http://statistics.data.gov.uk/id/local-authority-district/23UB,Cheltenham Borough Council,Adaptations for the Disabled (CBC),14046396,REDACTED,Premiere Healthcare Limited,C1107-CAH028,Building Works,42573,1349
http://statistics.data.gov.uk/id/local-authority-district/23UB,Cheltenham Borough Council,Council Tax Collection,14045556,9052279345,Royal Mail,R4521-LTC001,Postages - franking machine,42552,1208.73
http://statistics.data.gov.uk/id/local-authority-district/23UB,Cheltenham Borough Council,Referendum,14045638,9052324941,Royal Mail,R4521-ELE011,Postages - franking machine,42552,7599.47
http://statistics.data.gov.uk/id/local-authority-district/23UB,Cheltenham Borough Council,Referendum,14045970,9052334641,Royal Mail,R4520-ELE011,Postages - stamps,42552,2534.11
http://statistics.data.gov.uk/id/local-authority-district/23UB,Cheltenham Borough Council,Referendum,14045877,9052376599,Royal Mail,R4521-ELE011,Postages - franking machine,42559,969.81
http://statistics.data.gov.uk/id/local-authority-district/23UB,Cheltenham Borough Council,Council Tax Collection,14045877,9052376599,Royal Mail,R4521-LTC001,Postages - franking machine,42559,786.86
http://statistics.data.gov.uk/id/local-authority-district/23UB,Cheltenham Borough Council,Referendum,14045964,9052382572,Royal Mail,R4520-ELE011,Postages - stamps,42552,2333.2
http://statistics.data.gov.uk/id/local-authority-district/23UB,Cheltenham Borough Council,Registration of Electors,14045876,9052422118,Royal Mail,R4521-ELE001,Postages - franking machine,42559,1030.6
http://statistics.data.gov.uk/id/local-authority-district/23UB,Cheltenham Borough Council,Referendum,14045967,9052425599,Royal Mail,R4520-ELE011,Postages - stamps,42552,1785.15
http://statistics.data.gov.uk/id/local-authority-district/23UB,Cheltenham Borough Council,Referendum,14046040,9052471901,Royal Mail,R4520-ELE011,Postages - stamps,42559,1028.61
http://statistics.data.gov.uk/id/local-authority-district/23UB,Cheltenham Borough Council,Council Tax Collection,14046150,9052511041,Royal Mail,R4521-LTC001,Postages - franking machine,42580,1477.81
http://statistics.data.gov.uk/id/local-authority-district/23UB,Cheltenham Borough Council,Housing Benefit Administration,14046150,9052511041,Royal Mail,R4521-HBA001,Postages - franking machine,42580,630.53
http://statistics.data.gov.uk/id/local-authority-district/23UB,Cheltenham Borough Council,Community Welfare Grants,14046286,201992,RU Electrical Services (Roger Underdown Limited),R4001-GBD001,Tools & Equipment - Hire,42573,2569.5
http://statistics.data.gov.uk/id/local-authority-district/23UB,Cheltenham Borough Council,Sandford Lido car park,14046107,SANDFORD LIDEN PARKING - JUNE2016,Sandford Parks Lido (Trading) Limited,R5003-CPK103,TPP - Agency Fees,42566,-1683.33
http://statistics.data.gov.uk/id/local-authority-district/23UB,Cheltenham Borough Council,Sandford Lido car park,14046107,SANDFORD LIDEN PARKING - JUNE2016,Sandford Parks Lido (Trading) Limited,R5003-CPK103,TPP - Agency Fees,42566,33027.61
http://statistics.data.gov.uk/id/local-authority-district/23UB,Cheltenham Borough Council,Repairs and Maintenance,14046054,823,SAS EPC,R2018-HRA100,R & M of Build Voids Energy Performance Certificates,42566,765
http://statistics.data.gov.uk/id/local-authority-district/23UB,Cheltenham Borough Council,Car Park Income Collection,14046290,560890,Security Plus+ Limited,R4435-CPK002,Cash Collection Contract,42573,897.16
http://statistics.data.gov.uk/id/local-authority-district/23UB,Cheltenham Borough Council,Urban Design,14046146,33360,Signway Supplies Limited,R4010-URB101,Materials - Other Materials,42566,1347.5
http://statistics.data.gov.uk/id/local-authority-district/23UB,Cheltenham Borough Council,Urban Design,14046151,33361,Signway Supplies Limited,R4010-URB101,Materials - Other Materials,42566,506
http://statistics.data.gov.uk/id/local-authority-district/23UB,Cheltenham Borough Council,Soil Stacks,14045945,14380,Snape Construction Limited,C1107-CAH024,Building Works,42559,23407.2
http://statistics.data.gov.uk/id/local-authority-district/23UB,Cheltenham Borough Council,Soil Stacks,14045945,14380,Snape Construction Limited,C1107-CAH024,Building Works,42559,-23407.2
http://statistics.data.gov.uk/id/local-authority-district/23UB,Cheltenham Borough Council,Soil Stacks,14045945,14380,Snape Construction Limited,C1107-CAH024,Building Works,42559,23407.2
http://statistics.data.gov.uk/id/local-authority-district/23UB,Cheltenham Borough Council,Soil Stacks,14046194,14826,Snape Construction Limited,C1107-CAH024,Building Works,42580,21053.55
http://statistics.data.gov.uk/id/local-authority-district/23UB,Cheltenham Borough Council,Soil Stacks,14046194,14826,Snape Construction Limited,C1107-CAH024,Building Works,42580,21053.55
http://statistics.data.gov.uk/id/local-authority-district/23UB,Cheltenham Borough Council,Soil Stacks,14046194,14826,Snape Construction Limited,C1107-CAH024,Building Works,42580,-21053.55
http://statistics.data.gov.uk/id/local-authority-district/23UB,Cheltenham Borough Council,Bulking Facility,14043047,116084,South Wales Wood Recycling Ltd,R5005-RYC008,TPP - Minor Contract Fees,42559,1038.4
http://statistics.data.gov.uk/id/local-authority-district/23UB,Cheltenham Borough Council,Bulking Facility,14043048,116148,South Wales Wood Recycling Ltd,R5005-RYC008,TPP - Minor Contract Fees,42559,2219.8
http://statistics.data.gov.uk/id/local-authority-district/23UB,Cheltenham Borough Council,Bulking Facility,14045871,117197,South Wales Wood Recycling Ltd,R5005-RYC008,TPP - Minor Contract Fees,42559,2556.4
http://statistics.data.gov.uk/id/local-authority-district/23UB,Cheltenham Borough Council,Bulking Facility,14045757,117248,South Wales Wood Recycling Ltd,R5005-RYC008,TPP - Minor Contract Fees,42559,789.8
http://statistics.data.gov.uk/id/local-authority-district/23UB,Cheltenham Borough Council,Bulking Facility,14045809,117304,South Wales Wood Recycling Ltd,R5005-RYC008,TPP - Minor Contract Fees,42559,1851.3
http://statistics.data.gov.uk/id/local-authority-district/23UB,Cheltenham Borough Council,Bulking Facility,14046059,117369,South Wales Wood Recycling Ltd,R5005-RYC008,TPP - Minor Contract Fees,42559,1739.1
http://statistics.data.gov.uk/id/local-authority-district/23UB,Cheltenham Borough Council,Bulking Facility,14046058,117423,South Wales Wood Recycling Ltd,R5005-RYC008,TPP - Minor Contract Fees,42559,1689.5
http://statistics.data.gov.uk/id/local-authority-district/23UB,Cheltenham Borough Council,Bulking Facility,14046439,117504,South Wales Wood Recycling Ltd,R5005-RYC008,TPP - Minor Contract Fees,42580,1870
http://statistics.data.gov.uk/id/local-authority-district/23UB,Cheltenham Borough Council,Bulking Facility,14046440,117564,South Wales Wood Recycling Ltd,R5005-RYC008,TPP - Minor Contract Fees,42580,1838.1
http://statistics.data.gov.uk/id/local-authority-district/23UB,Cheltenham Borough Council,Income and Expenditure on Investment Properties and Changes in Their Fair Value,14046002,566,Sparkes Home and Garden Limited,R2083-FIE040,R&M of Build - Routine,42559,855
http://statistics.data.gov.uk/id/local-authority-district/23UB,Cheltenham Borough Council,Printing Services,14045822,364255,Springfield Business Papers Limited,R4306-SUP022,Photocopier Charges - Consumables,42552,1045
http://statistics.data.gov.uk/id/local-authority-district/23UB,Cheltenham Borough Council,Parks & Gardens Operations,14045808,3240,Streetmaster (South Wales) Limited,R2500-OPS001,Fixtures and Fittings - Purchases,42552,1527
http://statistics.data.gov.uk/id/local-authority-district/23UB,Cheltenham Borough Council,Land & Property presale costs,14045829,7073745,Sweett (UK) Limited,C1005-CAP401,Surveyors Fees,42552,1495
http://statistics.data.gov.uk/id/local-authority-district/23UB,Cheltenham Borough Council,Cemetery & Crematorium Repairs & Maintenance,14046334,6011,System Six Design & Build,R2700-CCM111,Contract Cleaning,42573,600
http://statistics.data.gov.uk/id/local-authority-district/23UB,Cheltenham Borough Council,Housing Benefit Administration,14045508,DEBT104805,Tewkesbury Borough Council,R4420-HBA001,Legal Expenses And Court Costs,42552,750
http://statistics.data.gov.uk/id/local-authority-district/23UB,Cheltenham Borough Council,Joint Core Strategy,14045855,debt104883,Tewkesbury Borough Council,R4400-PLP101,Services - Professional Fees,42566,3253.95
http://statistics.data.gov.uk/id/local-authority-district/23UB,Cheltenham Borough Council,Income and Expenditure on Investment Properties and Changes in Their Fair Value,14046004,DEBT104885,Tewkesbury Borough Council,R4400-FIE040,Services - Professional Fees,42566,903.23
http://statistics.data.gov.uk/id/local-authority-district/23UB,Cheltenham Borough Council,Income and Expenditure on Investment Properties and Changes in Their Fair Value,14046004,DEBT104885,Tewkesbury Borough Council,R4400-FIE040,Services - Professional Fees,42566,4300
http://statistics.data.gov.uk/id/local-authority-district/23UB,Cheltenham Borough Council,Joint Core Strategy,14046112,DEBT104891,Tewkesbury Borough Council,R4401-PLP101,Services - Fees and Charges,42566,8750
http://statistics.data.gov.uk/id/local-authority-district/23UB,Cheltenham Borough Council,Supervision and Management,14046164,debt104906,Tewkesbury Borough Council,R4420-HRA110,Legal Expenses And Court Costs,42566,6662
http://statistics.data.gov.uk/id/local-authority-district/23UB,Cheltenham Borough Council,Car Parks - Off Street Operations,14046317,DEBT104920,Tewkesbury Borough Council,R4300-CPK001,Printing - Services,42573,548.08
http://statistics.data.gov.uk/id/local-authority-district/23UB,Cheltenham Borough Council,Community Welfare Grants,14045818,70021919,The Cheltenham Trust,R6280-GBD001,Grants,42552,2000
http://statistics.data.gov.uk/id/local-authority-district/23UB,Cheltenham Borough Council,Referendum,14046044,70022282,The Cheltenham Trust,R4900-ELE011,Accomodation Costs,42559,2412
http://statistics.data.gov.uk/id/local-authority-district/23UB,Cheltenham Borough Council,Cultural - Service Management and Support Services,14046540,70022783,The Cheltenham Trust,R5001-CSM001,TPP - Major External Contractors,42580,63658.33
http://statistics.data.gov.uk/id/local-authority-district/23UB,Cheltenham Borough Council,General Fund Balance Sheet,14046037,8.50028E+11,The Midcounties Co-operative,B6170-BAL100,Short Term Revenue Creditors (incl RIA) - Other entities and individuals,42559,2804
http://statistics.data.gov.uk/id/local-authority-district/23UB,Cheltenham Borough Council,Disabled Facility Grants,14046395,REDACTED,The Surveying Practice - Client Account,C5000-CAP221,Grants,42573,7123.55
http://statistics.data.gov.uk/id/local-authority-district/23UB,Cheltenham Borough Council,Adaptations for the Disabled (CBC),14046392,REDACTED,The Surveying Practice - Client Account,C1107-CAH028,Building Works,42573,19454.37
http://statistics.data.gov.uk/id/local-authority-district/23UB,Cheltenham Borough Council,Adaptations for the Disabled (CBC),14046393,REDACTED,The Surveying Practice - Client Account,C1107-CAH028,Building Works,42573,6578.96
http://statistics.data.gov.uk/id/local-authority-district/23UB,Cheltenham Borough Council,Adaptations for the Disabled (CBC),14046394,REDACTED,The Surveying Practice - Client Account,C1107-CAH028,Building Works,42573,7475.33
http://statistics.data.gov.uk/id/local-authority-district/23UB,Cheltenham Borough Council,Town Hall Repairs & Maintenance,14046575,INV66481,Triangle Lift Services Limited,R2010-CUL112,R & M of Plant Lifts,42580,812
http://statistics.data.gov.uk/id/local-authority-district/23UB,Cheltenham Borough Council,Repairs and Maintenance,14045886,3IN/10279600,Tunstall Healthcare (UK) Limited,R4003-HRA100,Tools & Equipment - R & M,42552,1930
http://statistics.data.gov.uk/id/local-authority-district/23UB,Cheltenham Borough Council,Community Alarms,14045957,3in/10281853,Tunstall Healthcare (UK) Limited,R4000-SPP002,Equipment Purchase,42559,3642
http://statistics.data.gov.uk/id/local-authority-district/23UB,Cheltenham Borough Council,Community Alarms,14045293,4LA/10000350,Tunstall Healthcare (UK) Limited,R4000-SPP002,Equipment Purchase,42580,9350
http://statistics.data.gov.uk/id/local-authority-district/23UB,Cheltenham Borough Council,Car Parks - Off Street Operations,14045819,60009124,Ubico Limited,R5001-CPK001,TPP - Major External Contractors,42552,7300
http://statistics.data.gov.uk/id/local-authority-district/23UB,Cheltenham Borough Council,Street Cleaning,14045819,60009124,Ubico Limited,R5001-STC001,TPP - Major External Contractors,42552,64422
http://statistics.data.gov.uk/id/local-authority-district/23UB,Cheltenham Borough Council,Green Waste,14045819,60009124,Ubico Limited,R5001-RYC002,TPP - Major External Contractors,42552,25531.33
http://statistics.data.gov.uk/id/local-authority-district/23UB,Cheltenham Borough Council,Bring Sites,14045819,60009124,Ubico Limited,R5001-RYC005,TPP - Major External Contractors,42552,10990.08
http://statistics.data.gov.uk/id/local-authority-district/23UB,Cheltenham Borough Council,Household Waste,14045819,60009124,Ubico Limited,R5001-WST001,TPP - Major External Contractors,42552,100482.91
http://statistics.data.gov.uk/id/local-authority-district/23UB,Cheltenham Borough Council,Highways Agency Verges & Trees,14045819,60009124,Ubico Limited,R5001-ESR001,TPP - Major External Contractors,42552,24161.58
http://statistics.data.gov.uk/id/local-authority-district/23UB,Cheltenham Borough Council,Recycling Centres,14045819,60009124,Ubico Limited,R5001-RYC004,TPP - Major External Contractors,42552,51821.34
http://statistics.data.gov.uk/id/local-authority-district/23UB,Cheltenham Borough Council,Sports & Open Spaces Operations,14045819,60009124,Ubico Limited,R5001-OPS002,TPP - Major External Contractors,42552,49552.58
http://statistics.data.gov.uk/id/local-authority-district/23UB,Cheltenham Borough Council,Arle Road Nursery Operations,14045819,60009124,Ubico Limited,R5001-OPS101,TPP - Major External Contractors,42552,13836.25
http://statistics.data.gov.uk/id/local-authority-district/23UB,Cheltenham Borough Council,Trade Waste,14045819,60009124,Ubico Limited,R5001-TRW001,TPP - Major External Contractors,42552,45818
http://statistics.data.gov.uk/id/local-authority-district/23UB,Cheltenham Borough Council,Recycling Collection Schemes,14045819,60009124,Ubico Limited,R5001-RYC006,TPP - Major External Contractors,42552,137696.67
http://statistics.data.gov.uk/id/local-authority-district/23UB,Cheltenham Borough Council,Parks & Gardens Operations,14045819,60009124,Ubico Limited,R5001-OPS001,TPP - Major External Contractors,42552,42144
http://statistics.data.gov.uk/id/local-authority-district/23UB,Cheltenham Borough Council,Public Conveniences,14045819,60009124,Ubico Limited,R5001-REG019,TPP - Major External Contractors,42552,6169.17
http://statistics.data.gov.uk/id/local-authority-district/23UB,Cheltenham Borough Council,Supervision and Management,14045819,60009124,Ubico Limited,R2071-HRA110,Open Spaces and Grassed Areas,42552,27554.58
http://statistics.data.gov.uk/id/local-authority-district/23UB,Cheltenham Borough Council,"Cemetery, Crematorium and Churchyards",14046124,60009296,Ubico Limited,R3001-CCM001,Diesel,42566,539.19
http://statistics.data.gov.uk/id/local-authority-district/23UB,Cheltenham Borough Council,Supervision and Management,14046326,60009358,Ubico Limited,R2071-HRA110,Open Spaces and Grassed Areas,42573,27554.58
http://statistics.data.gov.uk/id/local-authority-district/23UB,Cheltenham Borough Council,Green Waste,14046326,60009358,Ubico Limited,R5001-RYC002,TPP - Major External Contractors,42573,25531.33
http://statistics.data.gov.uk/id/local-authority-district/23UB,Cheltenham Borough Council,Bring Sites,14046326,60009358,Ubico Limited,R5001-RYC005,TPP - Major External Contractors,42573,10990.08
http://statistics.data.gov.uk/id/local-authority-district/23UB,Cheltenham Borough Council,Parks & Gardens Operations,14046326,60009358,Ubico Limited,R5001-OPS001,TPP - Major External Contractors,42573,42144
http://statistics.data.gov.uk/id/local-authority-district/23UB,Cheltenham Borough Council,Car Parks - Off Street Operations,14046326,60009358,Ubico Limited,R5001-CPK001,TPP - Major External Contractors,42573,7300
http://statistics.data.gov.uk/id/local-authority-district/23UB,Cheltenham Borough Council,Recycling Centres,14046326,60009358,Ubico Limited,R5001-RYC004,TPP - Major External Contractors,42573,51821.34
http://statistics.data.gov.uk/id/local-authority-district/23UB,Cheltenham Borough Council,Recycling Collection Schemes,14046326,60009358,Ubico Limited,R5001-RYC006,TPP - Major External Contractors,42573,137696.67
http://statistics.data.gov.uk/id/local-authority-district/23UB,Cheltenham Borough Council,Public Conveniences,14046326,60009358,Ubico Limited,R5001-REG019,TPP - Major External Contractors,42573,6169.17
http://statistics.data.gov.uk/id/local-authority-district/23UB,Cheltenham Borough Council,Arle Road Nursery Operations,14046326,60009358,Ubico Limited,R5001-OPS101,TPP - Major External Contractors,42573,13836.25
http://statistics.data.gov.uk/id/local-authority-district/23UB,Cheltenham Borough Council,Trade Waste,14046326,60009358,Ubico Limited,R5001-TRW001,TPP - Major External Contractors,42573,45818
http://statistics.data.gov.uk/id/local-authority-district/23UB,Cheltenham Borough Council,Highways Agency Verges & Trees,14046326,60009358,Ubico Limited,R5001-ESR001,TPP - Major External Contractors,42573,24161.58
http://statistics.data.gov.uk/id/local-authority-district/23UB,Cheltenham Borough Council,Street Cleaning,14046326,60009358,Ubico Limited,R5001-STC001,TPP - Major External Contractors,42573,64422
http://statistics.data.gov.uk/id/local-authority-district/23UB,Cheltenham Borough Council,Sports & Open Spaces Operations,14046326,60009358,Ubico Limited,R5001-OPS002,TPP - Major External Contractors,42573,49552.58
http://statistics.data.gov.uk/id/local-authority-district/23UB,Cheltenham Borough Council,Household Waste,14046326,60009358,Ubico Limited,R5001-WST001,TPP - Major External Contractors,42573,100482.91
http://statistics.data.gov.uk/id/local-authority-district/23UB,Cheltenham Borough Council,Development Control - Applications,14046022,2.5E+13,Valuation Office Agency (VOA),R4400-DEV001,Services - Professional Fees,42559,2740.03
http://statistics.data.gov.uk/id/local-authority-district/23UB,Cheltenham Borough Council,Car Parks - Off Street Operations,14046145,CHL00248,Verrus (UK) Limited (Pay By Phone),R4401-CPK001,Services - Fees and Charges,42573,2818.09
http://statistics.data.gov.uk/id/local-authority-district/23UB,Cheltenham Borough Council,Car Parks - Off Street Operations,14046090,CHL00250,Verrus (UK) Limited (Pay By Phone),R4401-CPK001,Services - Fees and Charges,42566,2896.99
http://statistics.data.gov.uk/id/local-authority-district/23UB,Cheltenham Borough Council,ICT,14046403,511341401/0716,Virgin Media Business,R4548-SUP005,IT - Cabling and Network,42573,7110
http://statistics.data.gov.uk/id/local-authority-district/23UB,Cheltenham Borough Council,Bulky Household Waste,14046068,42720,Vision 21,R4401-WST004,Services - Fees and Charges,42580,4281.25
http://statistics.data.gov.uk/id/local-authority-district/23UB,Cheltenham Borough Council,Building Control - Fee Earning Work,14046411,JE86672,Vodafone Limited,R4000-BUC001,Equipment Purchase,42573,2705
http://statistics.data.gov.uk/id/local-authority-district/23UB,Cheltenham Borough Council,ICT,14046408,UK10/072016/2538,Vodafone Limited,R4507-SUP005,Comms - Mobile Telephones,42573,2540.83
http://statistics.data.gov.uk/id/local-authority-district/23UB,Cheltenham Borough Council,Public Conveniences,14045981,7150,Wallgate Limited,R2700-REG019,Contract Cleaning,42559,2485
http://statistics.data.gov.uk/id/local-authority-district/23UB,Cheltenham Borough Council,Referendum,14046043,22948,Wernick Hire Limited,R4900-ELE011,Accomodation Costs,42559,9960
http://statistics.data.gov.uk/id/local-authority-district/23UB,Cheltenham Borough Council,Supervision and Management,14046443,1300089,West Mercia Energy (WME),R2101-HRA110,Gas,42580,592.12
http://statistics.data.gov.uk/id/local-authority-district/23UB,Cheltenham Borough Council,Supervision and Management,14046441,1300104,West Mercia Energy (WME),R2101-HRA110,Gas,42580,658.77
http://statistics.data.gov.uk/id/local-authority-district/23UB,Cheltenham Borough Council,Corporate Management,14046128,33141747,West Oxfordshire District Council,R4409-COR001,Partnership Staff Fees,42566,6031
http://statistics.data.gov.uk/id/local-authority-district/23UB,Cheltenham Borough Council,Prince of Wales Stadium Repairs & Maintenance,14045828,2581,White Line Services International Limited,R2004-REC112,R & M of Build Programmed,42552,4950
http://statistics.data.gov.uk/id/local-authority-district/23UB,Cheltenham Borough Council,"Cemetery, Crematorium and Churchyards",14046294,267,Woodcraft UK,R4011-CCM001,Goods For Resale,42573,1336
http://statistics.data.gov.uk/id/local-authority-district/23UB,Cheltenham Borough Council,Community Welfare Grants,14046201,BENHALL & GRANLEY RESIDENTS ASSOCIATION,Youth and Community Services Limited,R6280-GBD001,Grants,42566,4800
http://statistics.data.gov.uk/id/local-authority-district/23UB,Cheltenham Borough Council,Community Welfare Grants,14046204,BENHALL RESIDENTS ASSOCIATION,Youth and Community Services Limited,R6280-GBD001,Grants,42566,750
http://statistics.data.gov.uk/id/local-authority-district/23UB,Cheltenham Borough Council,Community Welfare Grants,14046202,FRIENDS OF NAUNTON PARK,Youth and Community Services Limited,R6280-GBD001,Grants,42566,1820
http://statistics.data.gov.uk/id/local-authority-district/23UB,Cheltenham Borough Council,Community Welfare Grants,14046203,FRIENDS OF NAUNTON PARK.,Youth and Community Services Limited,R6280-GBD001,Grants,42566,4800
http://statistics.data.gov.uk/id/local-authority-district/23UB,Cheltenham Borough Council,Community Welfare Grants,14046205,POS ACTIVITIES 120716,CHELTENHAM & DISTRICT SCOUT ASSOCIATION,R6280-GBD001,Grants,42566,1128
http://statistics.data.gov.uk/id/local-authority-district/23UB,Cheltenham Borough Council,Community Welfare Grants,14044247,grant claim coram life education,Coram Life Education Gloucestershire Branch,R6280-GBD001,Grants,42552,4500
http://statistics.data.gov.uk/id/local-authority-district/23UB,Cheltenham Borough Council,Community Welfare Grants,14046207,BIG LOCAL - FEST 140716,LITTLESEED PRODUCTIONS,R6280-GBD001,Grants,42566,1120
http://statistics.data.gov.uk/id/local-authority-district/23UB,Cheltenham Borough Council,Rent Control,14046178,RENT REFUND ( REDACTED),REDACTED,R9910-HRA900,Refund of Overpiad Rent,42566,724.41
http://statistics.data.gov.uk/id/local-authority-district/23UB,Cheltenham Borough Council,Rent Control,14046385,rent refund ( REDACTED),REDACTED,R9910-HRA900,Refund of Overpiad Rent,42573,888.27
http://statistics.data.gov.uk/id/local-authority-district/23UB,Cheltenham Borough Council,Rent Control,14046175,RENT REFUND ( REDACTED),REDACTED,R9910-HRA900,Refund of Overpiad Rent,42566,1416.06
http://statistics.data.gov.uk/id/local-authority-district/23UB,Cheltenham Borough Council,Rent Control,14046386,rent refund (REDACTED),REDACTED,R9910-HRA900,Refund of Overpiad Rent,42573,847.29
http://statistics.data.gov.uk/id/local-authority-district/23UB,Cheltenham Borough Council,Rent Control,14046174,RENT REFUND (REDACTED),REDACTED,R9910-HRA900,Refund of Overpiad Rent,42566,561.94
http://statistics.data.gov.uk/id/local-authority-district/23UB,Cheltenham Borough Council,Car Parks - Off Street Operations,14046278,114694,WANSBOROUGHS SOLICITORS,R4964-CPK001,Insurance Excess,42573,1000
http://statistics.data.gov.uk/id/local-authority-district/23UB,Cheltenham Borough Council,Sports & Open Spaces Operations,10019887,Bank Transactions,SEVERN TRENT  DD 375009062 -  KING GEORGE V SPORTS GROUND,R2401-OPS002,Water Services - Metered,42579,532.62
http://statistics.data.gov.uk/id/local-authority-district/23UB,Cheltenham Borough Council,Cheltenham Depot,10019887,Bank Transactions,SEVERN TRENT WATER  4060021498 - ENVIRONMENTAL MAINTENANCE,R2401-ADB103,Water Services - Metered,42579,902.91
http://statistics.data.gov.uk/id/local-authority-district/23UB,Cheltenham Borough Council,Cheltenham Depot,10019887,Bank Transactions,SEVERN TRENT WATER  4060021498 - ENVIRONMENTAL MAINTENANCE,R2402-ADB103,Sewerage and Environmental Services,42579,1321.64
http://statistics.data.gov.uk/id/local-authority-district/23UB,Cheltenham Borough Council,Phase 3 Development,10019737,Bank Transactions,Purchase of REDACTED,C1001-CAH039,Acquisition Of Buildings,42527,185000
http://statistics.data.gov.uk/id/local-authority-district/23UB,Cheltenham Borough Council,Treasury Management,10019852,Bank Transactions,CARDNET DD 169118221,R4428-COR006,Services - credit card charges,42565,2278.88
http://statistics.data.gov.uk/id/local-authority-district/23UB,Cheltenham Borough Council,Treasury Management,10019852,Bank Transactions,CARDNET DD 500200738,R4428-COR006,Services - credit card charges,42565,1831.02
http://statistics.data.gov.uk/id/local-authority-district/23UB,Cheltenham Borough Council,Car Parks - Off Street Operations,10019887,Bank Transactions,SEVERN TRENT  DD 375009062 - CAR PARK NORTHFIELD TERRACE,R2402-CPK001,Sewerage and Environmental Services,42579,669.21
http://statistics.data.gov.uk/id/local-authority-district/23UB,Cheltenham Borough Council,Car Parks - Off Street Operations,10019844,Bank Transactions,S/LINE  J266867  INV 26621172,R4428-CPK001,Services - credit card charges,42571,2830.53
http://statistics.data.gov.uk/id/local-authority-district/23UB,Cheltenham Borough Council,Car Parks - Off Street Operations,10019904,Bank Transactions,BRITISH TELECOM  DD VP 31400270Q05701,R4515-CPK001,Comms - Telephone Call Charges,42563,3258.85
http://statistics.data.gov.uk/id/local-authority-district/23UB,Cheltenham Borough Council,Art Gallery & Museum Operations,10019904,Bank Transactions,BRITISH TELECOM  DD VP 31400270Q05701,R4515-CUL107,Comms - Telephone Call Charges,42563,582.22
http://statistics.data.gov.uk/id/local-authority-district/23UB,Cheltenham Borough Council,Ubico Intercompany Account,10019904,Bank Transactions,BRITISH TELECOM  DD VP 31400270Q05701,R4515-HLD102,Comms - Telephone Call Charges,42563,566.14
http://statistics.data.gov.uk/id/local-authority-district/23UB,Cheltenham Borough Council,Supervision and Management,10019853,Bank Transactions,SOUTHERN ELECTRIC DD 406098431,R2100-HRA110,Electricity,42555,6257.55
http://statistics.data.gov.uk/id/local-authority-district/23UB,Cheltenham Borough Council,Supervision and Management,10019904,Bank Transactions,BRITISH TELECOM  DD VP 31400270Q05701,R4515-HRA110,Comms - Telephone Call Charges,42563,2809.31
http://statistics.data.gov.uk/id/local-authority-district/23UB,Cheltenham Borough Council,Arle Road Nursery Operations,10019739,Bank Transactions,TOTAL  DD 1089834,R2101-OPS101,Gas,42564,902.83
http://statistics.data.gov.uk/id/local-authority-district/23UB,Cheltenham Borough Council,Recreation Centre Repairs & Maintenance,10019888,Bank Transactions,"SEVERN TRENT WATER - DD 4670020271 RECREATION CENTRE, TOMMY TAYLORS LANE",R2401-REC111,Water Services - Metered,42578,3198.54
http://statistics.data.gov.uk/id/local-authority-district/23UB,Cheltenham Borough Council,Telephones,10019847,Bank Transactions,VIRGIN MEDIA DD 510828101501,R4515-SUP006,Comms - Telephone Call Charges,42552,694.5
http://statistics.data.gov.uk/id/local-authority-district/23UB,Cheltenham Borough Council,Debtors,10019847,Bank Transactions,VIRGIN MEDIA DD  506761601005,R4436-SUP012,CCTV Line Rental,42552,1927.39
http://statistics.data.gov.uk/id/local-authority-district/23UB,Cheltenham Borough Council,Debtors,10019847,Bank Transactions,VIRGIN MEDIA DD  506761601005,R4515-SUP012,Comms - Telephone Call Charges,42552,1389.04
http://statistics.data.gov.uk/id/local-authority-district/23UB,Cheltenham Borough Council,Pensions Backfunding,10019672,Bank Transactions,GLOUCESTERSHIRE PENSION BACKFUNDING  2016/17,R1901-SUP038,Contribution to Pension Fund,42552,245500
Purchase Card Data,,,,,,,,,
http://statistics.data.gov.uk/id/local-authority-district/23UB,Cheltenham Borough Council,Community Welfare Grants,10019867,Procurement Cards, GARDEN 4 LESS,R6280-GBD001,Grants,42580,603.43
http://statistics.data.gov.uk/id/local-authority-district/23UB,Cheltenham Borough Council,Council Tax Collection,10019867,Procurement Cards, HM COURTS SERVICE,R4420-LTC001,Legal Expenses And Court Costs,42580,2874
